bitfinex-derivatives/quotes_BTCF0:USTF0_20210409
["timestamp","ask_amount","ask_price","bid_price","bid_amount"]
[1617942372665,2.48007433,58147.0,58146.0,0.10725655]
[1617942374064,1.48007433,58147.0,58146.0,0.10725655]
[1617942374364,2.03145978,58147.0,58146.0,0.10725655]
[1617942375672,2.48007759,58147.0,58146.0,0.10725655]
[1617942376067,2.48007759,58147.0,58140.0,0.10725655]
[1617942376567,0.36707577,58141.0,58140.0,0.10725655]
[1617942377368,1.36707577,58141.0,58140.0,0.10725655]
[1617942378068,1.71991544,58141.0,58140.0,0.10725655]
[1617942379072,1.10725655,58141.0,58140.0,0.10725655]
[1617942380773,0.10725655,58141.0,58140.0,0.10725655]
[1617942381171,1.10725655,58141.0,58140.0,0.10725655]
[1617942382975,1.47407013,58141.0,58140.0,0.10725655]
[1617942385578,2.97407013,58141.0,58140.0,0.10725655]
[1617942386280,1.47407013,58141.0,58140.0,0.10725655]
[1617942395195,2.97407013,58141.0,58140.0,0.10725655]
[1617942396301,1.47407013,58141.0,58140.0,0.10725655]
[1617942399002,1.77990077,58141.0,58140.0,0.10725655]
[1617942400902,0.77990077,58141.0,58140.0,0.10725655]
[1617942401303,1.77990077,58141.0,58140.0,0.10725655]
[1617942402204,1.02548527,58141.0,58140.0,0.10725655]
[1617942402402,2.02548527,58141.0,58140.0,0.10725655]
[1617942403504,2.02548527,58141.0,58140.0,0.40801232]
[1617942403906,2.02548527,58141.0,58140.0,0.76937925]
[1617942405206,5.60898527,58141.0,58140.0,0.76937925]
[1617942406109,5.71751527,58141.0,58140.0,0.76937925]
[1617942407712,5.71751527,58141.0,58140.0,0.40801232]
[1617942408212,6.16663334,58141.0,58140.0,0.40801232]
[1617942410014,5.16663334,58141.0,58140.0,0.40801232]
[1617942410215,6.16663334,58141.0,58140.0,0.40801232]
[1617942414324,6.16663334,58141.0,58140.0,0.30075577]
[1617942416826,6.16663334,58141.0,58140.0,0.66368179]
[1617942417225,6.16663334,58141.0,58140.0,0.19675577]
[1617942417226,7.66663334,58141.0,58140.0,0.19675577]
[1617942417626,7.66663334,58141.0,58136.0,0.36316523]
[1617942417627,8.17738381,58141.0,58136.0,0.36316523]
[1617942418326,0.81724924,58137.0,58135.0,0.3632186]
[1617942418526,1.5,58136.0,58132.0,0.3633853]
[1617942418926,1.5,58136.0,58122.0,0.61195835]
[1617942418927,0.81733381,58133.0,58129.0,0.36364407]
[1617942419528,0.81732137,58130.0,58129.0,0.36364407]
[1617942420027,0.81732137,58130.0,58127.0,0.36384688]
[1617942420428,0.10725655,58128.0,58126.0,0.36389765]
[1617942420727,1.07237176,58128.0,58126.0,0.36389765]
[1617942421228,1.0629769,58127.0,58126.0,0.36389765]
[1617942421428,2.0629769,58127.0,58126.0,0.36389765]
[1617942423032,4.8676769,58127.0,58126.0,0.36389765]
[1617942423232,4.8676769,58127.0,58122.0,0.10725655]
[1617942423233,4.41814918,58127.0,58122.0,0.10725655]
[1617942423738,0.36706255,58123.0,58122.0,0.10725655]
[1617942424158,1.0,58123.0,58122.0,0.47023495]
[1617942427640,1.36721547,58123.0,58122.0,0.47023495]
[1617942428452,1.0,58123.0,58122.0,0.47023495]
[1617942430240,1.0,58123.0,58122.0,0.10725655]
[1617942430640,1.0,58123.0,58122.0,0.47055268]
[1617942433551,1.0,58125.0,58122.0,0.47055268]
[1617942434145,0.36720729,58127.0,58124.0,3.68636484]
[1617942434382,0.36720729,58127.0,58125.0,0.2]
[1617942434645,0.3672049,58128.0,58126.0,3.68240125]
[1617942434844,0.3672049,58128.0,58127.0,0.2]
[1617942435047,0.44878333,58133.0,58127.0,0.2]
[1617942435048,0.36719692,58129.0,58127.0,0.2]
[1617942435544,0.36719224,58130.0,58128.0,0.42426964]
[1617942435746,0.36719224,58130.0,58129.0,0.2]
[1617942435945,0.36719091,58131.0,58129.0,0.56283001]
[1617942436347,0.36719091,58131.0,58130.0,0.42424783]
[1617942436545,0.47444746,58131.0,58130.0,0.73150438]
[1617942436746,1.47444746,58131.0,58130.0,0.73150438]
[1617942436946,0.47444746,58131.0,58130.0,0.73150438]
[1617942437146,0.7200696,58131.0,58130.0,0.73150438]
[1617942439449,0.7200696,58131.0,58130.0,0.16866157]
[1617942439847,1.7200696,58131.0,58130.0,0.16866157]
[1617942441349,0.7200696,58131.0,58130.0,0.28089157]
[1617942441649,0.7200696,58131.0,58130.0,0.64394325]
[1617942444053,0.7200696,58131.0,58130.0,0.28089157]
[1617942445554,0.7200696,58131.0,58130.0,4.33641094]
[1617942446753,0.35287869,58131.0,58130.0,4.33641094]
[1617942447253,0.72009428,58131.0,58130.0,4.33641094]
[1617942447855,0.65890857,58131.0,58130.0,4.63890804]
[1617942448152,1.02612436,58131.0,58130.0,4.63890804]
[1617942448854,1.02612436,58131.0,58130.0,0.94640804]
[1617942449756,3.91482436,58131.0,58130.0,0.94640804]
[1617942451559,1.02612436,58131.0,58130.0,0.94640804]
[1617942451860,1.02612436,58131.0,58130.0,4.46950804]
[1617942452661,0.65890857,58131.0,58130.0,4.46950804]
[1617942453163,0.41328643,58131.0,58130.0,4.46950804]
[1617942453963,0.41328643,58131.0,58130.0,0.94640804]
[1617942459772,0.41328643,58131.0,58130.0,1.39002732]
[1617942461974,0.78078509,58131.0,58130.0,0.94640804]
[1617942462874,1.02639722,58131.0,58130.0,0.94640804]
[1617942463275,0.65889856,58131.0,58130.0,0.94640804]
[1617942464576,0.65889856,58131.0,58130.0,1.38988274]
[1617942467279,0.65889856,58131.0,58130.0,0.94640804]
[1617942469583,1.02639475,58131.0,58130.0,0.94640804]
[1617942469985,0.65889856,58131.0,58130.0,0.94640804]
[1617942470887,1.02649277,58131.0,58130.0,1.3900585]
[1617942475395,0.65889856,58131.0,58130.0,1.3900585]
[1617942475796,0.41328643,58131.0,58130.0,1.3900585]
[1617942483103,0.78142987,58131.0,58130.0,1.3900585]
[1617942484001,1.02704277,58131.0,58130.0,1.3900585]
[1617942491715,1.02704277,58131.0,58130.0,1.89398639]
[1617942493416,1.02704277,58131.0,58130.0,1.3900585]
[1617942494019,1.02704277,58131.0,58130.0,1.89350549]
[1617942494320,0.41328643,58131.0,58130.0,1.89350549]
[1617942496521,0.41328643,58131.0,58130.0,1.3900585]
[1617942497021,0.30602988,58131.0,58130.0,1.78604572]
[1617942497522,0.41328643,58131.0,58130.0,1.89330227]
[1617942498321,1.0270726,58131.0,58130.0,1.89330227]
[1617942499726,1.0270726,58131.0,58130.0,1.3900585]
[1617942502429,1.0270726,58131.0,58130.0,1.89359524]
[1617942502930,1.0270726,58131.0,58130.0,4.8355585]
[1617942503436,1.0270726,58131.0,58130.0,5.43114872]
[1617942504632,1.0270726,58131.0,58130.0,1.98564872]
[1617942505435,1.0270726,58131.0,58130.0,1.89354471]
[1617942506135,1.0270726,58131.0,58130.0,1.3900585]
[1617942506836,4.6620726,58131.0,58130.0,1.3900585]
[1617942508937,4.6620726,58131.0,58130.0,1.89397161]
[1617942509137,1.0270726,58131.0,58130.0,1.89397161]
[1617942511144,4.5384726,58131.0,58130.0,1.3900585]
[1617942511364,4.6623426,58131.0,58130.0,1.28280195]
[1617942511547,5.6623426,58131.0,58130.0,1.17057195]
[1617942512043,5.6623426,58131.0,58130.0,1.10916693]
[1617942512844,2.1509426,58131.0,58130.0,1.10916693]
[1617942513346,2.60103948,58131.0,58130.0,1.10916693]
[1617942513544,2.47716948,58131.0,58130.0,1.10916693]
[1617942519350,2.0270726,58131.0,58130.0,1.10916693]
[1617942525376,1.0270726,58131.0,58130.0,4.44786693]
[1617942525658,1.0270726,58131.0,58130.0,4.55512348]
[1617942525860,1.0270726,58131.0,58130.0,4.7086331]
[1617942528559,3.5659726,58131.0,58130.0,1.3699331]
[1617942530961,4.5659726,58131.0,58130.0,1.3699331]
[1617942537067,3.5659726,58131.0,58130.0,1.3699331]
[1617942539070,4.5659726,58131.0,58130.0,1.3699331]
[1617942549884,3.64615655,58131.0,58130.0,0.10725655]
[1617942550285,4.32116756,58131.0,58130.0,1.2205268]
[1617942555991,4.77129545,58131.0,58130.0,1.2205268]
[1617942556391,2.23239545,58131.0,58130.0,1.2205268]
[1617942556793,2.23239545,58131.0,58130.0,4.4909268]
[1617942557394,1.23239545,58131.0,58130.0,4.6444418]
[1617942558596,1.47801937,58131.0,58130.0,4.6444418]
[1617942559496,1.47801937,58131.0,58130.0,1.3740418]
[1617942559697,4.49111937,58131.0,58130.0,1.3740418]
[1617942559898,4.49111937,58131.0,58130.0,1.2819328]
[1617942560397,5.49111937,58131.0,58130.0,1.2819328]
[1617942562403,2.47801937,58131.0,58130.0,1.2819328]
[1617942562604,2.47801937,58131.0,58130.0,3.8083328]
[1617942563204,2.47801937,58131.0,58130.0,3.90044237]
[1617942573013,2.47801937,58131.0,58130.0,4.05173237]
[1617942573213,1.47801937,58131.0,58130.0,4.05173237]
[1617942574014,1.37076282,58131.0,58130.0,4.05173237]
[1617942574216,0.92063493,58131.0,58130.0,4.76098657]
[1617942574514,0.92063493,58131.0,58130.0,5.03098657]
[1617942574816,0.67501101,58131.0,58130.0,5.03098657]
[1617942577619,0.30683248,58131.0,58130.0,5.03098657]
[1617942584531,0.30683248,58131.0,58130.0,4.83098657]
[1617942594651,0.30683248,58131.0,58130.0,2.30458657]
[1617942594849,2.83183248,58131.0,58130.0,2.30458657]
[1617942595051,2.83183248,58131.0,58130.0,2.212477]
[1617942596150,0.30683248,58131.0,58130.0,2.212477]
[1617942597254,0.30683248,58131.0,58130.0,5.854877]
[1617942597957,0.30683248,58131.0,58130.0,5.94697745]
[1617942601761,0.30683248,58131.0,58130.0,2.30457745]
[1617942602562,2.7507,58131.0,58130.0,2.212477]
[1617942603062,0.3066386,58132.0,58130.0,2.212477]
[1617942603463,0.3066386,58132.0,58131.0,1.68759454]
[1617942603863,0.3066386,58132.0,58131.0,4.94889454]
[1617942604465,0.3066386,58132.0,58131.0,5.04099454]
[1617942613076,0.3066386,58132.0,58131.0,6.54099454]
[1617942613277,0.3066386,58132.0,58131.0,6.74099454]
[1617942613579,0.01031963,58132.0,58131.0,6.88426377]
[1617942613978,0.01031941,58133.0,58131.0,3.69296377]
[1617942614380,0.01031941,58133.0,58132.0,0.81267133]
[1617942614579,0.0103193,58134.0,58132.0,4.68324046]
[1617942614780,0.0103193,58133.0,58132.0,4.86114178]
[1617942615286,0.01031927,58134.0,58132.0,4.95324023]
[1617942615781,0.36795183,58136.0,58133.0,1.77990052]
[1617942616087,0.36795183,58136.0,58135.0,1.11787567]
[1617942616486,0.67459487,58136.0,58135.0,1.8959805]
[1617942616982,0.67459487,58136.0,58135.0,1.44927519]
[1617942621285,0.30664304,58136.0,58135.0,1.44927519]
[1617942622185,0.67456389,58136.0,58135.0,1.44927519]
[1617942622885,0.67456389,58136.0,58135.0,4.16047519]
[1617942623588,0.67456389,58136.0,58135.0,4.25257374]
[1617942627093,0.67456389,58136.0,58135.0,4.76079435]
[1617942630701,0.61351037,58136.0,58135.0,4.76079435]
[1617942631101,0.67475072,58136.0,58135.0,4.76079435]
[1617942636912,0.67475072,58136.0,58135.0,4.8680509]
[1617942637611,0.92034096,58136.0,58135.0,4.8680509]
[1617942643423,0.67475072,58136.0,58135.0,4.8680509]
[1617942646828,0.78200727,58136.0,58135.0,4.8680509]
[1617942647430,1.02759873,58136.0,58135.0,4.8680509]
[1617942654733,0.10725655,58136.0,58135.0,3.08845655]
[1617942655235,0.78225479,58136.0,58135.0,4.71374699]
[1617942656034,1.02784859,58136.0,58135.0,4.71374699]
[1617942662746,1.02784859,58136.0,58135.0,2.00254699]
[1617942662946,4.10462398,58136.0,58135.0,2.00254699]
[1617942663346,3.85903018,58136.0,58135.0,1.49464373]
[1617942663648,4.47303233,58136.0,58135.0,1.49464373]
[1617942663848,5.47303233,58136.0,58135.0,1.49464373]
[1617942666452,5.47274606,58136.0,58135.0,1.49464373]
[1617942667155,4.47274606,58136.0,58135.0,1.49464373]
[1617942667355,5.47274606,58136.0,58135.0,1.38738718]
[1617942667555,5.47274606,58136.0,58135.0,1.11738718]
[1617942667755,2.84624606,58136.0,58135.0,1.11738718]
[1617942668156,2.47784477,58136.0,58135.0,1.11738718]
[1617942669261,2.47784477,58136.0,58135.0,0.67043231]
[1617942681272,5.56004477,58136.0,58135.0,4.18103231]
[1617942681873,5.92835251,58136.0,58135.0,4.18103231]
[1617942682074,2.84615251,58136.0,58135.0,0.67043231]
[1617942682876,2.47784477,58136.0,58135.0,0.67043231]
[1617942684281,1.98853068,58136.0,58135.0,0.30474196]
[1617942684478,2.98853068,58136.0,58135.0,0.30474196]
[1617942685179,2.98853068,58136.0,58134.0,0.30439914]
[1617942685483,1.87992487,58135.0,58133.0,0.30449926]
[1617942686181,1.6343622,58134.0,58133.0,0.30449926]
[1617942686904,2.6343622,58134.0,58133.0,0.30449926]
[1617942687087,2.6343622,58134.0,58125.0,0.44647519]
[1617942687088,2.6343622,58134.0,58132.0,0.30450569]
[1617942687601,1.8799499,58133.0,58132.0,0.30450569]
[1617942687881,1.36923047,58133.0,58132.0,0.30450569]
[1617942688481,1.87988629,58133.0,58132.0,0.30450569]
[1617942688882,2.87988629,58133.0,58132.0,0.30450569]
[1617942691284,2.36923047,58133.0,58130.0,0.30392821]
[1617942691886,1.12232167,58131.0,58130.0,0.30392821]
[1617942692887,1.36789025,58131.0,58130.0,0.30392821]
[1617942693287,2.36789025,58131.0,58130.0,0.30392821]
[1617942693488,2.12232167,58131.0,58130.0,0.30392821]
[1617942693789,2.36789328,58131.0,58130.0,0.30392821]
[1617942695490,2.36789328,58131.0,58129.0,0.30435531]
[1617942695991,1.06180473,58130.0,58127.0,0.36509447]
[1617942696290,1.0,58128.0,58127.0,0.36509447]
[1617942696591,1.13752,58128.0,58127.0,0.36509447]
[1617942697091,1.85766398,58128.0,58127.0,0.36509447]
[1617942697991,1.85766398,58128.0,58126.0,0.36522557]
[1617942698394,1.61288937,58127.0,58126.0,0.36522557]
[1617942701596,5.20078937,58127.0,58126.0,0.42661885]
[1617942701796,5.20078937,58127.0,58125.0,0.36522599]
[1617942702497,1.61271421,58126.0,58125.0,0.36522599]
[1617942703997,0.61271421,58126.0,58125.0,0.36522599]
[1617942704298,1.61271421,58126.0,58125.0,0.36522599]
[1617942705898,1.61271421,58126.0,58124.0,0.36500853]
[1617942706511,1.61271421,58126.0,58122.0,0.36517976]
[1617942706512,0.61272863,58125.0,58122.0,0.36517976]
[1617942707697,1.0,58123.0,58122.0,0.36517976]
[1617942707897,1.36714857,58123.0,58121.0,0.36529594]
[1617942708199,0.61272878,58122.0,58121.0,0.36529594]
[1617942709201,0.71998533,58122.0,58121.0,0.36529594]
[1617942709800,1.71998533,58122.0,58121.0,0.36529594]
[1617942712805,1.71998533,58122.0,58120.0,0.36551315]
[1617942713405,0.61259714,58121.0,58118.0,0.36539434]
[1617942713806,0.61259714,58121.0,58112.0,0.10725655]
[1617942713807,0.36702142,58119.0,58116.0,0.36543613]
[1617942714307,1.36702792,58117.0,58116.0,0.36543613]
[1617942714707,1.36702792,58117.0,58115.0,0.36553604]
[1617942715107,0.10725655,58116.0,58115.0,0.36553604]
[1617942715305,0.57402392,58116.0,58115.0,0.36553604]
[1617942715506,1.57402392,58116.0,58115.0,0.36553604]
[1617942717507,1.57402392,58116.0,58114.0,0.36553166]
[1617942718007,0.20699655,58116.0,58115.0,0.36551908]
[1617942718409,0.20699655,58116.0,58114.0,0.36552648]
[1617942718708,0.57405006,58116.0,58114.0,0.36552648]
[1617942719109,0.36705339,58115.0,58114.0,0.36552648]
[1617942720209,1.36705339,58115.0,58114.0,0.36552648]
[1617942726020,1.67297157,58115.0,58114.0,0.30456065]
[1617942726718,4.60417157,58115.0,58114.0,0.30456065]
[1617942732830,4.23711818,58115.0,58114.0,0.30456065]
[1617942733129,4.60425875,58115.0,58114.0,0.30456065]
[1617942735431,4.60425875,58115.0,58113.0,0.30495644]
[1617942735833,0.91881192,58114.0,58113.0,0.30495644]
[1617942737436,1.91881192,58114.0,58113.0,0.30495644]
[1617942739940,2.36791264,58114.0,58113.0,0.30495644]
[1617942744042,1.91881192,58114.0,58113.0,0.30495644]
[1617942749048,2.36733143,58114.0,58113.0,0.30495644]
[1617942749649,1.91881192,58114.0,58113.0,0.30495644]
[1617942749849,1.36734563,58114.0,58113.0,0.30495644]
[1617942750149,2.36734563,58114.0,58113.0,0.30495644]
[1617942750449,5.15595805,58114.0,58113.0,0.30495644]
[1617942750851,5.77019895,58114.0,58113.0,0.30495644]
[1617942751049,2.73589895,58114.0,58113.0,0.30495644]
[1617942751249,2.73589895,58114.0,58113.0,3.71695644]
[1617942751850,2.36735441,58114.0,58113.0,3.71695644]
[1617942752272,2.36735441,58114.0,58113.0,4.08438027]
[1617942752771,1.9188207,58114.0,58113.0,4.08438027]
[1617942753351,1.9188207,58114.0,58113.0,0.77963682]
[1617942753550,1.30597488,58114.0,58113.0,1.22860882]
[1617942753950,4.05747488,58114.0,58113.0,1.22860882]
[1617942754152,3.05747488,58114.0,58113.0,1.22860882]
[1617942754351,1.30597488,58114.0,58113.0,1.22860882]
[1617942754657,1.30597488,58114.0,58113.0,4.49372516]
[1617942755352,1.01031033,58114.0,58113.0,4.58584775]
[1617942756954,0.01031033,58114.0,58113.0,4.58584775]
[1617942760656,0.01027669,58115.0,58113.0,4.58584775]
[1617942761157,0.01027669,58115.0,58114.0,1.27643465]
[1617942762083,0.01027669,58115.0,58114.0,4.10403465]
[1617942762492,0.01027669,58115.0,58114.0,4.61484204]
[1617942762865,0.30548121,58116.0,58114.0,4.61484204]
[1617942762866,0.00519647,58116.0,58114.0,4.61484204]
[1617942763361,0.00519647,58116.0,58115.0,1.78803558]
[1617942763691,0.00519647,58116.0,58115.0,1.98803558]
[1617942763860,0.00519779,58117.0,58115.0,1.98803558]
[1617942764060,0.00519779,58117.0,58115.0,2.25803558]
[1617942764261,0.01029367,58118.0,58116.0,1.69587706]
[1617942764262,0.00519873,58118.0,58116.0,1.69587706]
[1617942764561,0.00519873,58118.0,58117.0,0.2]
[1617942764761,0.00519188,58121.0,58117.0,2.10238346]
[1617942765363,0.00519277,58122.0,58121.0,0.10725655]
[1617942765563,0.00519277,58122.0,58121.0,0.30725655]
[1617942765763,0.30550671,58124.0,58122.0,2.7218]
[1617942765764,0.00519608,58124.0,58122.0,2.7218]
[1617942766071,0.00519783,58126.0,58123.0,0.2]
[1617942766304,0.00519783,58126.0,58123.0,0.47]
[1617942766564,0.30585659,58128.0,58123.0,0.47]
[1617942766565,0.00519977,58128.0,58125.0,1.63217563]
[1617942766762,0.00519977,58128.0,58126.0,0.2]
[1617942766982,0.30597074,58130.0,58126.0,0.2]
[1617942766983,0.00520092,58130.0,58127.0,1.63213356]
[1617942767163,0.00520092,58130.0,58128.0,0.2]
[1617942767362,0.00520092,58130.0,58128.0,0.58229]
[1617942767563,0.00520092,58130.0,58129.0,1.22934797]
[1617942767764,0.00520092,58130.0,58129.0,1.42934797]
[1617942767964,0.00520237,58132.0,58129.0,2.27072071]
[1617942768379,0.00520233,58133.0,58131.0,1.12189043]
[1617942768573,0.00520233,58133.0,58132.0,0.2]
[1617942768780,0.00520233,58133.0,58132.0,0.47]
[1617942768987,0.01030258,58133.0,58132.0,1.59198052]
[1617942769268,0.01030258,58133.0,58132.0,1.65337854]
[1617942770370,0.01030258,58133.0,58132.0,4.31637854]
[1617942771069,0.30612153,58133.0,58132.0,4.40847636]
[1617942771971,0.30612153,58133.0,58132.0,1.74547636]
[1617942772471,0.30612153,58133.0,58132.0,1.65337854]
[1617942773473,0.0102998,58133.0,58132.0,1.65337854]
[1617942774272,0.30603659,58134.0,58132.0,1.65337854]
[1617942774874,0.30603659,58134.0,58133.0,1.18315759]
[1617942775376,0.30603659,58134.0,58133.0,1.54525597]
[1617942775574,0.30603659,58134.0,58133.0,1.45315759]
[1617942775975,0.00519015,58135.0,58133.0,1.20445411]
[1617942776574,0.00519015,58135.0,58134.0,0.73314618]
[1617942776775,0.00519015,58135.0,58134.0,0.93314618]
[1617942777076,0.00519075,58136.0,58134.0,1.20314618]
[1617942777677,0.00519075,58136.0,58135.0,0.84026613]
[1617942777878,0.00519075,58136.0,58135.0,1.04026613]
[1617942778079,0.00519075,58136.0,58135.0,1.31026613]
[1617942778679,0.11244726,58137.0,58135.0,1.11026613]
[1617942779079,0.11244726,58137.0,58136.0,0.73299158]
[1617942779481,0.11244726,58137.0,58136.0,1.00299158]
[1617942779981,0.10725655,58137.0,58136.0,1.00299158]
[1617942780381,0.11244717,58137.0,58136.0,1.00299158]
[1617942780780,0.10725655,58137.0,58136.0,1.00299158]
[1617942781383,0.11244715,58137.0,58136.0,1.00299158]
[1617942782685,0.11753521,58137.0,58136.0,0.63666774]
[1617942783284,0.11753521,58137.0,58136.0,1.00307471]
[1617942783986,0.11244463,58137.0,58136.0,0.63666774]
[1617942784985,0.11752998,58137.0,58136.0,0.57526987]
[1617942785286,0.11244464,58137.0,58136.0,0.57526987]
[1617942785788,0.10725655,58137.0,58136.0,0.57526987]
[1617942786186,0.41247281,58137.0,58136.0,0.27]
[1617942787491,1.41247281,58137.0,58136.0,0.27]
[1617942788588,0.41247281,58137.0,58136.0,0.27]
[1617942789594,0.10725655,58137.0,58136.0,0.57520149]
[1617942790094,0.41223308,58137.0,58136.0,0.27]
[1617942790495,0.11752271,58137.0,58136.0,0.57520378]
[1617942792397,0.11752271,58137.0,58136.0,0.77520378]
[1617942792597,0.11752271,58137.0,58136.0,0.69962378]
[1617942792800,0.10725655,58137.0,58136.0,0.69962378]
[1617942794701,0.11243856,58137.0,58136.0,0.69962378]
[1617942796902,0.11243856,58137.0,58136.0,0.57520378]
[1617942797804,0.10725655,58137.0,58136.0,0.57520378]
[1617942798306,0.11244065,58137.0,58136.0,0.57520378]
[1617942798705,0.10725655,58137.0,58136.0,0.57520378]
[1617942800211,0.11244188,58137.0,58136.0,0.57520378]
[1617942801210,0.11244188,58137.0,58136.0,0.27]
[1617942801409,0.11244188,58137.0,58136.0,0.57509205]
[1617942802311,0.10725655,58137.0,58136.0,0.57509205]
[1617942802813,0.11753611,58137.0,58136.0,0.94163678]
[1617942803212,0.41263517,58137.0,58136.0,0.57509205]
[1617942803812,0.41263517,58137.0,58136.0,1.00303824]
[1617942806119,0.11754197,58137.0,58136.0,1.00303824]
[1617942807917,0.41283846,58137.0,58136.0,1.00303824]
[1617942809020,0.41283846,58137.0,58136.0,0.63649071]
[1617942809422,0.41283846,58137.0,58136.0,1.00311083]
[1617942813831,0.77969086,58137.0,58136.0,1.45215772]
[1617942814729,1.02528567,58137.0,58136.0,1.45215772]
[1617942823240,1.02528567,58137.0,58136.0,3.95255772]
[1617942823840,1.02528567,58137.0,58136.0,4.18818581]
[1617942824842,1.47429314,58137.0,58136.0,4.18818581]
[1617942825142,1.22869833,58137.0,58136.0,4.18818581]
[1617942825543,1.02528209,58137.0,58136.0,4.69963552]
[1617942826143,1.47441469,58137.0,58136.0,4.18818581]
[1617942830848,1.47441469,58137.0,58136.0,4.04465581]
[1617942835453,1.36715814,58137.0,58136.0,4.04465581]
[1617942836053,0.67243431,58137.0,58136.0,4.55612918]
[1617942836954,0.91801606,58137.0,58136.0,4.55612918]
[1617942837253,0.67243431,58137.0,58136.0,4.55612918]
[1617942837953,0.91801501,58137.0,58136.0,4.55612918]
[1617942838554,0.67243431,58137.0,58136.0,4.55612918]
[1617942839754,0.67243431,58137.0,58136.0,2.05572918]
[1617942840256,0.67243431,58137.0,58136.0,1.96363109]
[1617942842355,0.67243431,58137.0,58136.0,5.27843109]
[1617942842858,0.67243431,58137.0,58136.0,5.370523]
[1617942845860,0.77969086,58137.0,58136.0,5.370523]
[1617942846662,1.0252731,58137.0,58136.0,5.370523]
[1617942846962,0.77969086,58137.0,58136.0,5.370523]
[1617942847362,1.02527305,58137.0,58136.0,5.370523]
[1617942849665,1.02527305,58137.0,58136.0,4.85904963]
[1617942850867,1.02527305,58137.0,58136.0,5.37022027]
[1617942851367,1.02527305,58137.0,58136.0,4.85904963]
[1617942851969,1.02527305,58137.0,58136.0,5.37021969]
[1617942854505,0.9180165,58137.0,58136.0,5.57021969]
[1617942855100,0.30558191,58137.0,58136.0,5.57021969]
[1617942856073,0.30558191,58137.0,58136.0,2.25541969]
[1617942856276,0.01029987,58137.0,58136.0,2.25541969]
[1617942856974,0.01029987,58137.0,58136.0,5.35112778]
[1617942857677,0.01029987,58137.0,58136.0,5.24321675]
[1617942860781,0.30603867,58138.0,58136.0,5.24321675]
[1617942861282,0.30603867,58138.0,58137.0,1.78841975]
[1617942861784,0.30603867,58138.0,58137.0,2.05841975]
[1617942863983,0.31633992,58138.0,58137.0,2.05841975]
[1617942864284,0.01030125,58138.0,58137.0,2.05841975]
[1617942864482,0.30604967,58138.0,58137.0,2.05841975]
[1617942866886,0.4488286,58146.0,58137.0,2.05841975]
[1617942866887,0.30606583,58139.0,58137.0,2.05841975]
[1617942867385,0.0102992,58138.0,58137.0,0.27]
[1617942867788,0.0102992,58138.0,58137.0,1.63444996]
[1617942867986,0.0102992,58138.0,58137.0,5.28374996]
[1617942868286,0.0102992,58138.0,58137.0,5.55374996]
[1617942868486,0.0102992,58138.0,58137.0,5.28374996]
[1617942868686,0.0102992,58138.0,58137.0,5.55374996]
[1617942868987,0.0102992,58138.0,58137.0,5.64583801]
[1617942869688,0.01029956,58139.0,58137.0,5.64583801]
[1617942870088,0.01029956,58139.0,58138.0,1.7879219]
[1617942870489,0.01029956,58139.0,58138.0,2.0579219]
[1617942876295,0.30601985,58140.0,58138.0,2.0579219]
[1617942876596,0.01029958,58139.0,58138.0,2.0579219]
[1617942877801,0.01030147,58140.0,58138.0,2.0579219]
[1617942878199,0.01030147,58140.0,58139.0,1.1234949]
[1617942878401,0.01030147,58140.0,58139.0,1.69556442]
[1617942878599,0.01030147,58140.0,58139.0,1.96556442]
[1617942880003,0.01030147,58140.0,58139.0,4.60506442]
[1617942880803,0.01030147,58140.0,58139.0,4.69715027]
[1617942881605,0.01031063,58141.0,58139.0,4.69715027]
[1617942882204,0.01031063,58141.0,58140.0,1.78762101]
[1617942882407,0.01031063,58141.0,58140.0,0.09208356]
[1617942882607,0.01031063,58141.0,58140.0,2.13946973]
[1617942883105,0.01031063,58141.0,58140.0,1.9962289]
[1617942883505,0.01031063,58141.0,58140.0,1.90414534]
[1617942883708,0.01031063,58141.0,58140.0,4.69784534]
[1617942884406,0.01031063,58141.0,58140.0,4.78992896]
[1617942884607,0.01031063,58141.0,58140.0,1.99622896]
[1617942885306,0.01031063,58141.0,58140.0,1.90414534]
[1617942885707,0.30650153,58141.0,58140.0,1.90414534]
[1617942886109,0.01031552,58141.0,58140.0,1.90414534]
[1617942886308,0.01031552,58141.0,58140.0,4.58114534]
[1617942886608,0.30650249,58141.0,58140.0,4.58114534]
[1617942887109,0.3065035,58142.0,58140.0,4.67322846]
[1617942887510,0.3065035,58142.0,58140.0,1.99622846]
[1617942888114,0.3677899,58143.0,58141.0,1.8019313]
[1617942888513,0.3677899,58143.0,58142.0,1.96516252]
[1617942889013,0.67438995,58143.0,58142.0,1.96516252]
[1617942889626,0.67438995,58143.0,58142.0,1.45460851]
[1617942890038,1.67438995,58143.0,58142.0,1.45460851]
[1617942890245,1.7816465,58143.0,58142.0,1.45460851]
[1617942890614,2.47666632,58143.0,58142.0,1.45460851]
[1617942890835,5.69886632,58143.0,58142.0,1.45460851]
[1617942892324,2.47666632,58143.0,58142.0,1.45460851]
[1617942893318,5.53586632,58143.0,58142.0,1.54669781]
[1617942893819,5.90422503,58143.0,58142.0,1.45460851]
[1617942900724,4.90422503,58143.0,58142.0,1.45460851]
[1617942901924,4.68369632,58143.0,58142.0,1.45460851]
[1617942902426,5.68369632,58143.0,58142.0,1.45460851]
[1617942903528,4.31428655,58143.0,58142.0,0.27]
[1617942904031,5.43691312,58143.0,58142.0,1.12391708]
[1617942904429,5.43691312,58143.0,58142.0,1.39391708]
[1617942904631,5.43691312,58143.0,58142.0,1.12391708]
[1617942905031,5.43691312,58143.0,58142.0,1.39391708]
[1617942905634,5.43691312,58143.0,58142.0,1.4553127]
[1617942907933,5.43691312,58143.0,58142.0,1.00574587]
[1617942914946,4.43691312,58143.0,58142.0,1.00574587]
[1617942915144,4.28908312,58143.0,58142.0,1.00574587]
[1617942916645,4.28908312,58143.0,58142.0,1.11300242]
[1617942916946,4.28908312,58143.0,58142.0,1.56260937]
[1617942917446,4.18182657,58143.0,58142.0,1.56260937]
[1617942918046,3.73279635,58143.0,58142.0,1.56260937]
[1617942919747,0.67359635,58143.0,58142.0,1.56260937]
[1617942920449,0.67359635,58143.0,58142.0,4.21840937]
[1617942921252,0.67359635,58143.0,58142.0,4.31049683]
[1617942922150,0.67359635,58143.0,58142.0,4.82133945]
[1617942923755,0.30618943,58143.0,58142.0,4.82133945]
[1617942930461,0.67347187,58143.0,58142.0,4.82133945]
[1617942930861,0.67347187,58143.0,58142.0,4.31049683]
[1617942931564,0.67347187,58143.0,58142.0,4.43997683]
[1617942932064,0.30618943,58143.0,58142.0,4.95074485]
[1617942937267,0.01029998,58143.0,58142.0,4.95074485]
[1617942940372,0.01029998,58143.0,58142.0,4.82126485]
[1617942940873,0.30595558,58143.0,58142.0,4.82126485]
[1617942942977,0.30595558,58143.0,58142.0,2.16546485]
[1617942943476,0.30595558,58143.0,58142.0,2.07337739]
[1617942944378,0.30595558,58143.0,58142.0,5.42607739]
[1617942945079,0.30595558,58143.0,58142.0,5.51816257]
[1617942946982,0.30595558,58143.0,58142.0,2.16546257]
[1617942947682,0.30595558,58143.0,58142.0,2.07337739]
[1617942947983,0.30595558,58143.0,58142.0,2.16546333]